fUSD/lending_fUSD_20260616
["ID","MTS","AMOUNT","RATE_DAILY","PERIOD"]
[425144235,1781548292000,-300.0,0.00034612,2]
[425144245,1781548292000,-729.13704685,0.00034612,2]
[425144234,1781548292000,-300.0,0.00034612,2]
[425144238,1781548292000,-300.0,0.00034612,2]
[425144246,1781548292000,-302.96749636,0.00034612,2]
[425144236,1781548292000,-300.0,0.00034612,2]
[425144237,1781548292000,-468.26724013,0.00034612,2]
[425144239,1781548292000,-494.53026195,0.00034612,2]
[425144244,1781548292000,-536.07617039,0.00034612,2]
[425144240,1781548292000,-300.0,0.00034612,2]
[425144241,1781548292000,-300.0,0.00034612,2]
[425144243,1781548292000,-300.0,0.00034612,2]
[425144248,1781548292000,-301.74079207,0.00034612,2]
[425144276,1781548292000,-423.47928482,0.00034612,2]
[425144221,1781548292000,-596.47889358,0.00034612,2]
[425144279,1781548292000,-300.0,0.00034612,2]
[425144310,1781548292000,-1099.53596865,0.00034612,2]
[425144313,1781548292000,-300.79714257,0.00034612,2]
[425144309,1781548292000,-300.0,0.00034612,2]
[425144312,1781548292000,-300.0,0.00034612,2]
[425144311,1781548292000,-300.0,0.00034612,2]
[425144308,1781548292000,-445.47580286,0.00034612,2]
[425144314,1781548292000,-494.53026193,0.00034612,2]
[425144318,1781548292000,-536.07617039,0.00034612,2]
[425144319,1781548292000,-729.13704685,0.00034612,2]
[425144328,1781548292000,-300.0,0.00034612,2]
[425144329,1781548292000,-868.02305374,0.00034612,2]
[425144320,1781548292000,-302.96749636,0.00034612,2]
[425144326,1781548292000,-345.28584049,0.00034612,2]
[425144323,1781548292000,-300.0,0.00034612,2]
[425144321,1781548292000,-300.75310972,0.00034612,2]
[425144322,1781548292000,-301.74079207,0.00034612,2]
[425144324,1781548292000,-300.0,0.00034612,2]
[425144327,1781548292000,-528.93064975,0.00034612,2]
[425144325,1781548292000,-300.0,0.00034612,2]
[425144331,1781548292000,-1804.8149799,0.00034612,2]
[425144334,1781548292000,-596.47889358,0.00034612,2]
[425144332,1781548292000,-310.80214287,0.00034612,2]
[425144337,1781548292000,-300.0,0.00034612,2]
[425144333,1781548292000,-1346.16314365,0.00034612,2]
[425144335,1781548292000,-300.0,0.00034612,2]
[425144336,1781548292000,-513.2596001,0.00034612,2]
[425144273,1781548292000,-1099.53596865,0.00034612,2]
[425144305,1781548292000,-300.0,0.00034612,2]
[425144307,1781548292000,-300.0,0.00034612,2]
[425144330,1781548292000,-952.86637481,0.00034612,2]
[425144316,1781548292000,-607.00878667,0.00034612,2]
[425144280,1781548292000,-300.54295278,0.00034612,2]
[425144281,1781548292000,-607.00878667,0.00034612,2]
[425144285,1781548292000,-302.96749636,0.00034612,2]
[425144283,1781548292000,-536.07617039,0.00034612,2]
[425144282,1781548292000,-300.0,0.00034612,2]
[425144286,1781548292000,-300.75310972,0.00034612,2]
[425144290,1781548292000,-300.0,0.00034612,2]
[425144317,1781548292000,-300.0,0.00034612,2]
[425144288,1781548292000,-300.0,0.00034612,2]
[425144284,1781548292000,-729.13704685,0.00034612,2]
[425144289,1781548292000,-300.0,0.00034612,2]
[425144291,1781548292000,-345.28584049,0.00034612,2]
[425144292,1781548292000,-528.93064975,0.00034612,2]
[425144287,1781548292000,-301.74079207,0.00034612,2]
[425144294,1781548292000,-868.02305374,0.00034612,2]
[425144293,1781548292000,-300.0,0.00034612,2]
[425144315,1781548292000,-300.0,0.00034612,2]
[425144304,1781548292000,-453.65517008,0.00034612,2]
[425144295,1781548292000,-1804.8149799,0.00034612,2]
[425144303,1781548292000,-583.4214993,0.00034612,2]
[425144302,1781548292000,-300.0,0.00034612,2]
[425144306,1781548292000,-300.0,0.00034612,2]
[425144299,1781548292000,-596.47889358,0.00034612,2]
[425144296,1781548292000,-952.86637484,0.00034612,2]
[425144301,1781548292000,-513.2596001,0.00034612,2]
[425144298,1781548292000,-1346.16314365,0.00034612,2]
[425144297,1781548292000,-310.80214287,0.00034612,2]
[425144300,1781548292000,-300.0,0.00034612,2]
[425144380,1781548293000,-494.53026193,0.00034612,2]
[425144371,1781548293000,-583.4214993,0.00034612,2]
[425144373,1781548293000,-300.0,0.00034612,2]
[425144372,1781548293000,-453.65517008,0.00034612,2]
[425144374,1781548293000,-300.0,0.00034612,2]
[425144367,1781548293000,-596.47889358,0.00034612,2]
[425144369,1781548293000,-513.2596001,0.00034612,2]
[425144378,1781548293000,-300.0,0.00034612,2]
[425144375,1781548293000,-445.47580286,0.00034612,2]
[425144370,1781548293000,-300.0,0.00034612,2]
[425144377,1781548293000,-1099.53596865,0.00034612,2]
[425144381,1781548293000,-607.00878667,0.00034612,2]
[425144400,1781548293000,-300.0,0.00034612,2]
[425144389,1781548293000,-300.0,0.00034612,2]
[425144382,1781548293000,-300.0,0.00034612,2]
[425144384,1781548293000,-729.13704685,0.00034612,2]
[425144385,1781548293000,-302.96749636,0.00034612,2]
[425144383,1781548293000,-536.07617039,0.00034612,2]
[425144388,1781548293000,-300.0,0.00034612,2]
[425144387,1781548293000,-301.74079207,0.00034612,2]
[425144386,1781548293000,-300.75310972,0.00034612,2]
[425144390,1781548293000,-300.0,0.00034612,2]
[425144394,1781548293000,-868.02305374,0.00034612,2]
[425144391,1781548293000,-345.28584049,0.00034612,2]
[425144401,1781548293000,-513.2596001,0.00034612,2]
[425144376,1781548293000,-300.0,0.00034612,2]
[425144379,1781548293000,-300.0,0.00034612,2]
[425144368,1781548293000,-300.0,0.00034612,2]
[425144352,1781548293000,-729.13704685,0.00034612,2]
[425144362,1781548293000,-868.02305374,0.00034612,2]
[425144342,1781548293000,-445.47580286,0.00034612,2]
[425144341,1781548293000,-300.0,0.00034612,2]
[425144338,1781548293000,-583.4214993,0.00034612,2]
[425144340,1781548293000,-300.0,0.00034612,2]
[425144339,1781548293000,-453.65517008,0.00034612,2]
[425144343,1781548293000,-300.0,0.00034612,2]
[425144345,1781548293000,-300.0,0.00034612,2]
[425144348,1781548293000,-335.17899278,0.00034612,2]
[425144344,1781548293000,-1099.53596865,0.00034612,2]
[425144355,1781548293000,-301.74079207,0.00034612,2]
[425144346,1781548293000,-300.0,0.00034612,2]
[425144351,1781548293000,-536.07617039,0.00034612,2]
[425144365,1781548293000,-310.80214287,0.00034612,2]
[425144350,1781548293000,-300.0,0.00034612,2]
[425144349,1781548293000,-607.00878667,0.00034612,2]
[425144353,1781548293000,-302.96749636,0.00034612,2]
[425144354,1781548293000,-300.75310972,0.00034612,2]
[425144357,1781548293000,-300.0,0.00034612,2]
[425144366,1781548293000,-1346.16314365,0.00034612,2]
[425144356,1781548293000,-300.0,0.00034612,2]
[425144358,1781548293000,-300.0,0.00034612,2]
[425144363,1781548293000,-952.86637482,0.00034612,2]
[425144360,1781548293000,-528.93064975,0.00034612,2]
[425144364,1781548293000,-1804.8149799,0.00034612,2]
[425144359,1781548293000,-345.28584049,0.00034612,2]
[425144361,1781548293000,-300.0,0.00034612,2]
[425144347,1781548293000,-494.53026193,0.00034612,2]
[425144392,1781548293000,-528.93064975,0.00034612,2]
[425144399,1781548293000,-596.47889358,0.00034612,2]
[425144396,1781548293000,-1804.8149799,0.00034612,2]
[425144431,1781548293000,-300.0,0.00034612,2]
[425144430,1781548293000,-596.47889358,0.00034612,2]
[425144427,1781548293000,-1804.8149799,0.00034612,2]
[425144429,1781548293000,-1346.16314365,0.00034612,2]
[425144436,1781548293000,-300.0,0.00034612,2]
[425144432,1781548293000,-513.2596001,0.00034612,2]
[425144435,1781548293000,-453.65517008,0.00034612,2]
[425144433,1781548293000,-464.61765931,0.00034612,2]
[425144434,1781548293000,-583.4214993,0.00034612,2]
[425144445,1781548293000,-729.13704685,0.00034612,2]
[425144446,1781548293000,-302.96749636,0.00034612,2]
[425144438,1781548293000,-300.0,0.00034612,2]
[425144437,1781548293000,-445.47580286,0.00034612,2]
[425144449,1781548293000,-300.0,0.00034612,2]
[425144439,1781548293000,-1099.53596865,0.00034612,2]
[425144442,1781548293000,-607.00878667,0.00034612,2]
[425144444,1781548293000,-536.07617039,0.00034612,2]
[425144441,1781548293000,-494.53026193,0.00034612,2]
[425144443,1781548293000,-300.0,0.00034612,2]
[425144440,1781548293000,-300.0,0.00034612,2]
[425144450,1781548293000,-300.0,0.00034612,2]
[425144451,1781548293000,-300.0,0.00034612,2]
[425144452,1781548293000,-345.28584049,0.00034612,2]
[425144453,1781548293000,-528.93064975,0.00034612,2]
[425144454,1781548293000,-300.0,0.00034612,2]
[425144393,1781548293000,-300.0,0.00034612,2]
[425144448,1781548293000,-301.74079207,0.00034612,2]
[425144428,1781548293000,-310.80214287,0.00034612,2]
[425144447,1781548293000,-300.75310972,0.00034612,2]
[425144426,1781548293000,-952.86637482,0.00034612,2]
[425144421,1781548293000,-300.0,0.00034612,2]
[425144395,1781548293000,-952.86637485,0.00034612,2]
[425144398,1781548293000,-1346.16314365,0.00034612,2]
[425144402,1781548293000,-300.0,0.00034612,2]
[425144412,1781548293000,-607.00878667,0.00034612,2]
[425144413,1781548293000,-300.0,0.00034612,2]
[425144406,1781548293000,-445.47580286,0.00034612,2]
[425144405,1781548293000,-300.0,0.00034612,2]
[425144403,1781548293000,-583.4214993,0.00034612,2]
[425144408,1781548293000,-1099.53596865,0.00034612,2]
[425144404,1781548293000,-453.65517008,0.00034612,2]
[425144409,1781548293000,-300.0,0.00034612,2]
[425144411,1781548293000,-494.53026193,0.00034612,2]
[425144397,1781548293000,-310.80214287,0.00034612,2]
[425144410,1781548293000,-375.0181392,0.00034612,2]
[425144407,1781548293000,-300.0,0.00034612,2]
[425144419,1781548293000,-300.0,0.00034612,2]
[425144423,1781548293000,-528.93064975,0.00034612,2]
[425144416,1781548293000,-302.96749636,0.00034612,2]
[425144415,1781548293000,-729.13704685,0.00034612,2]
[425144424,1781548293000,-300.0,0.00034612,2]
[425144420,1781548293000,-300.0,0.00034612,2]
[425144422,1781548293000,-345.28584049,0.00034612,2]
[425144417,1781548293000,-300.75310972,0.00034612,2]
[425144425,1781548293000,-868.02305374,0.00034612,2]
[425144414,1781548293000,-536.07617039,0.00034612,2]
[425144418,1781548293000,-301.74079207,0.00034612,2]
[425144493,1781548294000,-302.96749636,0.00034612,2]
[425144494,1781548294000,-300.75310972,0.00034612,2]
[425144485,1781548294000,-445.47580286,0.00034612,2]
[425144486,1781548294000,-300.0,0.00034612,2]
[425144492,1781548294000,-729.13704685,0.00034612,2]
[425144488,1781548294000,-494.53026194,0.00034612,2]
[425144490,1781548294000,-300.0,0.00034612,2]
[425144491,1781548294000,-536.07617039,0.00034612,2]
[425144489,1781548294000,-607.00878667,0.00034612,2]
[425144495,1781548294000,-301.74079207,0.00034612,2]
[425144487,1781548294000,-1099.53596865,0.00034612,2]
[425144505,1781548294000,-445.47580286,0.00034612,2]
[425144498,1781548294000,-868.02305374,0.00034612,2]
[425144496,1781548294000,-345.28584049,0.00034612,2]
[425144499,1781548294000,-952.86637482,0.00034612,2]
[425144497,1781548294000,-528.93064975,0.00034612,2]
[425144500,1781548294000,-1804.8149799,0.00034612,2]
[425144501,1781548294000,-310.80214287,0.00034612,2]
[425144503,1781548294000,-513.2596001,0.00034612,2]
[425144504,1781548294000,-453.65517008,0.00034612,2]
[425144502,1781548294000,-596.47889358,0.00034612,2]
[425144508,1781548294000,-494.53026195,0.00034612,2]
[425144507,1781548294000,-1099.53596865,0.00034612,2]
[425144509,1781548294000,-607.00878667,0.00034612,2]
[425144484,1781548294000,-453.65517008,0.00034612,2]
[425144506,1781548294000,-300.0,0.00034612,2]
[425144483,1781548294000,-513.2596001,0.00034612,2]
[425144510,1781548294000,-593.23191339,0.00034612,2]
[425144479,1781548294000,-1804.8149799,0.00034612,2]
[425144456,1781548294000,-952.86637483,0.00034612,2]
[425144460,1781548294000,-300.0,0.00034612,2]
[425144457,1781548294000,-1804.8149799,0.00034612,2]
[425144461,1781548294000,-513.2596001,0.00034612,2]
[425144459,1781548294000,-596.47889358,0.00034612,2]
[425144458,1781548294000,-310.80214287,0.00034612,2]
[425144455,1781548294000,-868.02305374,0.00034612,2]
[425144462,1781548294000,-453.65517008,0.00034612,2]
[425144466,1781548294000,-511.48567215,0.00034612,2]
[425144465,1781548294000,-1099.53596865,0.00034612,2]
[425144463,1781548294000,-445.47580286,0.00034612,2]
[425144470,1781548294000,-536.07617039,0.00034612,2]
[425144478,1781548294000,-952.86637484,0.00034612,2]
[425144464,1781548294000,-300.0,0.00034612,2]
[425144471,1781548294000,-729.13704685,0.00034612,2]
[425144469,1781548294000,-300.0,0.00034612,2]
[425144468,1781548294000,-607.00878667,0.00034612,2]
[425144467,1781548294000,-494.53026193,0.00034612,2]
[425144474,1781548294000,-301.74079207,0.00034612,2]
[425144473,1781548294000,-300.75310972,0.00034612,2]
[425144475,1781548294000,-345.28584049,0.00034612,2]
[425144481,1781548294000,-596.47889358,0.00034612,2]
[425144482,1781548294000,-506.3535306,0.00034612,2]
[425144477,1781548294000,-868.02305374,0.00034612,2]
[425144476,1781548294000,-528.93064975,0.00034612,2]
[425144480,1781548294000,-310.80214287,0.00034612,2]
[425144472,1781548294000,-302.96749636,0.00034612,2]
[425144511,1781548294000,-536.07617039,0.00034612,2]
[425144539,1781548294000,-310.80214287,0.00034612,2]
[425144516,1781548294000,-345.28584049,0.00034612,2]
[425144545,1781548294000,-1099.53596865,0.00034612,2]
[425144546,1781548294000,-607.00878667,0.00034612,2]
[425144547,1781548294000,-714.99430976,0.00034612,2]
[425144553,1781548294000,-868.02305374,0.00034612,2]
[425144544,1781548294000,-300.0,0.00034612,2]
[425144554,1781548294000,-1804.8149799,0.00034612,2]
[425144548,1781548294000,-729.13704685,0.00034612,2]
[425144549,1781548294000,-302.96749636,0.00034612,2]
[425144551,1781548294000,-301.74079207,0.00034612,2]
[425144550,1781548294000,-401.00414653,0.00034612,2]
[425144552,1781548294000,-460.78420439,0.00034612,2]
[425144555,1781548294000,-414.40285749,0.00034612,2]
[425144557,1781548294000,-453.65517008,0.00034612,2]
[425144556,1781548294000,-513.2596001,0.00034612,2]
[425144564,1781548294000,-1157.36407177,0.00034612,2]
[425144559,1781548294000,-366.51198986,0.00034612,2]
[425144562,1781548294000,-302.96749636,0.00034612,2]
[425144558,1781548294000,-300.0,0.00034612,2]
[425144561,1781548294000,-729.13704685,0.00034612,2]
[425144560,1781548294000,-810.0070929,0.00034612,2]
[425144563,1781548294000,-301.74079207,0.00034612,2]
[425144566,1781548294000,-513.2596001,0.00034612,2]
[425144565,1781548294000,-601.85065302,0.00034612,2]
[425144569,1781548294000,-729.13704685,0.00034612,2]
[425144514,1781548294000,-300.75310972,0.00034612,2]
[425144540,1781548294000,-795.82815783,0.00034612,2]
[425144538,1781548294000,-1804.8149799,0.00034612,2]
[425144567,1781548294000,-604.87356017,0.00034612,2]
[425144541,1781548294000,-513.2596001,0.00034612,2]
[425144513,1781548294000,-302.96749636,0.00034612,2]
[425144568,1781548294000,-340.30057971,0.00034612,2]
[425144515,1781548294000,-301.74079207,0.00034612,2]
[425144518,1781548294000,-868.02305374,0.00034612,2]
[425144512,1781548294000,-729.13704685,0.00034612,2]
[425144517,1781548294000,-528.93064975,0.00034612,2]
[425144521,1781548294000,-310.80214287,0.00034612,2]
[425144530,1781548294000,-729.13704685,0.00034612,2]
[425144529,1781548294000,-536.07617039,0.00034612,2]
[425144531,1781548294000,-302.96749636,0.00034612,2]
[425144520,1781548294000,-1804.8149799,0.00034612,2]
[425144523,1781548294000,-513.2596001,0.00034612,2]
[425144522,1781548294000,-596.47889358,0.00034612,2]
[425144519,1781548294000,-952.86637483,0.00034612,2]
[425144524,1781548294000,-453.65517008,0.00034612,2]
[425144525,1781548294000,-445.47580286,0.00034612,2]
[425144526,1781548294000,-300.0,0.00034612,2]
[425144527,1781548294000,-1099.53596865,0.00034612,2]
[425144532,1781548294000,-300.75310972,0.00034612,2]
[425144533,1781548294000,-301.74079207,0.00034612,2]
[425144542,1781548294000,-453.65517008,0.00034612,2]
[425144543,1781548294000,-445.47580286,0.00034612,2]
[425144534,1781548294000,-345.28584049,0.00034612,2]
[425144535,1781548294000,-703.82837016,0.00034612,2]
[425144536,1781548294000,-868.02305374,0.00034612,2]
[425144528,1781548294000,-607.00878667,0.00034612,2]
[425144537,1781548294000,-317.62212526,0.00034612,2]
[425144605,1781548295000,-1434.90345,0.000348,120]
[425144607,1781548295000,-319.84197749,0.00034821,30]
[425144606,1781548295000,-644.14,0.00034806,2]
[425144604,1781548295000,-644.14,0.00034797,2]
[425144601,1781548295000,-166.33293086,0.00034788,30]
[425144600,1781548295000,-2214.5576,0.00034773,2]
[425144603,1781548295000,-1500.0,0.00034795,2]
[425144602,1781548295000,-90142.44618717,0.0003479,2]
[425144599,1781548295000,-279.0,0.000347,24]
[425144609,1781548295000,-1173.2129426,0.00034851,30]
[425144608,1781548295000,-158.24410207,0.00034843,2]
[425144611,1781548295000,-1463.42935019,0.00034869,2]
[425144614,1781548295000,-205.36023714,0.000349,14]
[425144610,1781548295000,-765.25451575,0.00034853,60]
[425144613,1781548295000,-202.0,0.0003488,30]
[425144615,1781548295000,-262.35384898,0.000349,120]
[425144616,1781548295000,-1500.0,0.000349,7]
[425144618,1781548295000,-357.27,0.00034915,7]
[425144617,1781548295000,-501.0,0.00034911,10]
[425144620,1781548295000,-280.849888,0.00034978,120]
[425144619,1781548295000,-512.78671096,0.00034933,30]
[425144598,1781548295000,-165.18,0.000347,24]
[425144630,1781548295000,-2503.1633574,0.00035,2]
[425144612,1781548295000,-1239.13904577,0.00034869,7]
[425144597,1781548295000,-230.74,0.000347,24]
[425144583,1781548295000,-345.24105339,0.00034612,2]
[425144593,1781548295000,-284.785004,0.00034678,120]
[425144621,1781548295000,-206.01,0.0003499,120]
[425144574,1781548295000,-1542.22196999,0.00034612,2]
[425144575,1781548295000,-1038.37043746,0.00034612,2]
[425144570,1781548295000,-403.95666214,0.00034612,2]
[425144572,1781548295000,-684.34613379,0.00034612,2]
[425144573,1781548295000,-402.32105611,0.00034612,2]
[425144571,1781548295000,-301.74079207,0.00034612,2]
[425144576,1781548295000,-300.000001,0.00034612,2]
[425144577,1781548295000,-481.82817634,0.00034612,2]
[425144578,1781548295000,-659.37368271,0.00034612,2]
[425144579,1781548295000,-345.830238,0.00034612,2]
[425144595,1781548295000,-436.1,0.000347,24]
[425144582,1781548295000,-466.61521832,0.00034612,2]
[425144580,1781548295000,-389.58964152,0.00034612,2]
[425144584,1781548295000,-500.0,0.00034618,60]
[425144585,1781548295000,-500.0,0.00034618,60]
[425144587,1781548295000,-500.0,0.00034618,60]
[425144592,1781548295000,-1000.0,0.00034658,120]
[425144594,1781548295000,-15233.88152559,0.0003468,30]
[425144590,1781548295000,-256.7907144,0.00034618,60]
[425144586,1781548295000,-500.0,0.00034618,60]
[425144589,1781548295000,-500.0,0.00034618,60]
[425144596,1781548295000,-237.87,0.000347,24]
[425144591,1781548295000,-218.25,0.00034618,60]
[425144581,1781548295000,-430.25416109,0.00034612,2]
[425144622,1781548295000,-362.93051745,0.00034999,60]
[425144588,1781548295000,-500.0,0.00034618,60]
[425144625,1781548295000,-500.0,0.00035,2]
[425144656,1781548295000,-2451.8074114,0.00035,2]
[425144664,1781548295000,-204.73679387,0.00035,120]
[425144661,1781548295000,-236.0,0.00035,2]
[425144657,1781548295000,-236.0,0.00035,2]
[425144660,1781548295000,-151.98334777,0.00035,120]
[425144663,1781548295000,-156.38287496,0.00035,120]
[425144655,1781548295000,-308.05,0.00035,30]
[425144662,1781548295000,-2500.0,0.00035,36]
[425144665,1781548295000,-200.0,0.00035,120]
[425144658,1781548295000,-342.0,0.00035,120]
[425144659,1781548295000,-200.0,0.00035,120]
[425144648,1781548295000,-3071.42153114,0.00035,2]
[425144666,1781548295000,-31000.0,0.00035,15]
[425144668,1781548295000,-50000.0,0.00035,2]
[425144677,1781548295000,-187.0,0.00035114,30]
[425144670,1781548295000,-260.31,0.0003503,30]
[425144671,1781548295000,-10999.64,0.00035061,14]
[425144676,1781548295000,-197.0,0.00035114,30]
[425144672,1781548295000,-2355.406,0.000351,120]
[425144674,1781548295000,-2355.4,0.000351,60]
[425144669,1781548295000,-2214.5576,0.00035019,2]
[425144673,1781548295000,-2355.406,0.000351,120]
[425144678,1781548295000,-158.24410207,0.00035117,2]
[425144626,1781548295000,-800.0,0.00035,7]
[425144667,1781548295000,-20000.0,0.00035,10]
[425144651,1781548295000,-1007.26831774,0.00035,7]
[425144675,1781548295000,-247.0,0.00035114,30]
[425144645,1781548295000,-16139.0,0.00035,2]
[425144647,1781548295000,-247.05,0.00035,2]
[425144624,1781548295000,-800.0,0.00035,7]
[425144623,1781548295000,-800.0,0.00035,7]
[425144628,1781548295000,-1000.0,0.00035,2]
[425144629,1781548295000,-2571.9106248,0.00035,2]
[425144632,1781548295000,-1000.0,0.00035,2]
[425144631,1781548295000,-252.03553729,0.00035,7]
[425144641,1781548295000,-174.61775703,0.00035,7]
[425144640,1781548295000,-2500.00000001,0.00035,10]
[425144633,1781548295000,-2470.18506474,0.00035,7]
[425144638,1781548295000,-2000.0,0.00035,2]
[425144634,1781548295000,-2470.18506474,0.00035,7]
[425144627,1781548295000,-800.0,0.00035,7]
[425144636,1781548295000,-762.263164,0.00035,2]
[425144644,1781548295000,-172.41721914,0.00035,7]
[425144639,1781548295000,-2000.0,0.00035,2]
[425144654,1781548295000,-472.37830297,0.00035,2]
[425144646,1781548295000,-788.62808,0.00035,10]
[425144653,1781548295000,-236.0,0.00035,2]
[425144649,1781548295000,-1314.47162954,0.00035,7]
[425144652,1781548295000,-1007.26831774,0.00035,7]
[425144642,1781548295000,-150.0,0.00035,7]
[425144637,1781548295000,-2000.0,0.00035,2]
[425144643,1781548295000,-291.0,0.00035,7]
[425144635,1781548295000,-36482.58980187,0.00035,4]
[425144650,1781548295000,-1314.47162954,0.00035,7]
[425144714,1781548296000,-500.0,0.00035479,2]
[425144705,1781548296000,-260.31,0.0003546,69]
[425144710,1781548296000,-500.0,0.00035479,2]
[425144703,1781548296000,-208.24629698,0.000354,120]
[425144708,1781548296000,-500.0,0.00035479,2]
[425144704,1781548296000,-215.49631673,0.000354,120]
[425144701,1781548296000,-158.24410207,0.00035391,2]
[425144706,1781548296000,-500.0,0.00035479,2]
[425144700,1781548296000,-163.0695,0.00035389,2]
[425144709,1781548296000,-500.0,0.00035479,2]
[425144713,1781548296000,-500.0,0.00035479,2]
[425144720,1781548296000,-304.266537,0.00035479,2]
[425144711,1781548296000,-500.0,0.00035479,2]
[425144722,1781548296000,-800.0,0.000355,7]
[425144707,1781548296000,-500.0,0.00035479,2]
[425144715,1781548296000,-500.0,0.00035479,2]
[425144721,1781548296000,-800.0,0.000355,7]
[425144716,1781548296000,-500.0,0.00035479,2]
[425144712,1781548296000,-500.0,0.00035479,2]
[425144702,1781548296000,-181.80707183,0.000354,120]
[425144683,1781548296000,-2069.0,0.00035204,30]
[425144697,1781548296000,-751.78,0.00035303,30]
[425144719,1781548296000,-500.0,0.00035479,2]
[425144688,1781548296000,-1311.0,0.00035204,30]
[425144679,1781548296000,-235.91023219,0.00035117,14]
[425144680,1781548296000,-931.32,0.00035118,30]
[425144681,1781548296000,-1000.0,0.00035202,2]
[425144686,1781548296000,-717.0,0.00035204,30]
[425144684,1781548296000,-2112.0,0.00035204,30]
[425144685,1781548296000,-208.0,0.00035204,30]
[425144687,1781548296000,-260.0,0.00035204,30]
[425144682,1781548296000,-1109.24215977,0.00035202,2]
[425144690,1781548296000,-256.0,0.00035204,30]
[425144691,1781548296000,-2214.5576,0.00035266,2]
[425144693,1781548296000,-276.97307,0.00035279,120]
[425144689,1781548296000,-217.0,0.00035204,30]
[425144692,1781548296000,-7988.0,0.00035268,10]
[425144694,1781548296000,-150.0,0.00035285,2]
[425144696,1781548296000,-150.0,0.00035285,2]
[425144699,1781548296000,-153.84237965,0.00035342,2]
[425144695,1781548296000,-150.0,0.00035285,2]
[425144698,1781548296000,-228.27538337,0.00035328,8]
[425144717,1781548296000,-500.0,0.00035479,2]
[425144732,1781548296000,-411.30782435,0.00035562,40]
[425144724,1781548296000,-800.0,0.000355,7]
[425144747,1781548296000,-600.0,0.00035616,120]
[425144744,1781548296000,-171406.49541044,0.0003561,2]
[425144749,1781548296000,-208.27674982,0.00035616,30]
[425144746,1781548296000,-600.0,0.00035616,120]
[425144750,1781548296000,-227.14777751,0.00035616,60]
[425144751,1781548296000,-1000.0,0.00035616,120]
[425144752,1781548296000,-500.0,0.00035616,120]
[425144753,1781548296000,-814.96,0.00035616,2]
[425144748,1781548296000,-2000.0,0.00035616,30]
[425144754,1781548296000,-657.784135,0.00035616,30]
[425144760,1781548296000,-657.784135,0.00035616,30]
[425144761,1781548296000,-657.784135,0.00035616,30]
[425144759,1781548296000,-657.784135,0.00035616,30]
[425144762,1781548296000,-657.784135,0.00035616,30]
[425144758,1781548296000,-657.784135,0.00035616,30]
[425144763,1781548296000,-314.0,0.00035621,120]
[425144718,1781548296000,-500.0,0.00035479,2]
[425144765,1781548296000,-158.24410207,0.00035665,2]
[425144757,1781548296000,-657.784135,0.00035616,30]
[425144756,1781548296000,-657.784135,0.00035616,30]
[425144764,1781548296000,-1000.0,0.00035643,120]
[425144745,1781548296000,-4524.07876506,0.0003561,2]
[425144755,1781548296000,-657.784135,0.00035616,30]
[425144725,1781548296000,-151.0,0.00035501,2]
[425144728,1781548296000,-2214.5576,0.00035513,2]
[425144726,1781548296000,-719.04747942,0.00035501,2]
[425144727,1781548296000,-864.78058953,0.00035501,2]
[425144730,1781548296000,-500.0,0.00035538,30]
[425144731,1781548296000,-371.82532124,0.00035562,7]
[425144729,1781548296000,-1698.8,0.00035523,5]
[425144734,1781548296000,-2494.0,0.00035589,120]
[425144723,1781548296000,-800.0,0.000355,7]
[425144740,1781548296000,-2255.0,0.00035589,120]
[425144741,1781548296000,-2022.5,0.00035589,120]
[425144736,1781548296000,-2181.0,0.00035589,120]
[425144739,1781548296000,-2255.0,0.00035589,120]
[425144738,1781548296000,-1961.5,0.00035589,120]
[425144737,1781548296000,-1961.5,0.00035589,120]
[425144742,1781548296000,-2022.5,0.00035589,120]